[Event "Titled Tuesday Blitz February 28 Late 2023"]
[White "Skaric, Djuro"]
[Black "Poliakova, Varvara"]
[WhiteFideId "934569"]
[BlackFideId "13518313"]
[WhiteElo "2282"]
[BlackElo "2075"]
[Result "0-1"]
[Round "01"]
[TimeControl "180+2"]
[Date "2023.02.28"]
[WhiteClock "0:00:44"]
[BlackClock "0:00:32"]

1. g3 {[%clk 0:03:00]}  f5 {[%clk 0:02:59]} 2. Bg2 {[%clk 0:03:00]}  Nf6 {[%clk 0:02:58]} 3. d3 {[%clk 0:02:59]}  d6 {[%clk 0:02:59]} 4. Nc3 {[%clk 0:02:59]}  e5 {[%clk 0:02:59]} 5. e4 {[%clk 0:02:58]}  Nc6 {[%clk 0:02:58]} 6. Nf3 {[%clk 0:02:57]}  g6 {[%clk 0:02:56]} 7. O-O {[%clk 0:02:56]}  Bg7 {[%clk 0:02:54]} 8. exf5 {[%clk 0:02:56]}  Bxf5 {[%clk 0:02:54]} 9. Nh4 {[%clk 0:02:56]}  Bg4 {[%clk 0:02:53]} 10. f3 {[%clk 0:02:56]}  Be6 {[%clk 0:02:51]} 11. f4 {[%clk 0:02:56]}  exf4 {[%clk 0:02:50]} 12. Bxf4 {[%clk 0:02:54]}  O-O {[%clk 0:02:50]} 13. Qd2 {[%clk 0:02:53]}  Ng4 {[%clk 0:02:42]} 14. Ne2 {[%clk 0:02:43]}  Qd7 {[%clk 0:02:30]} 15. h3 {[%clk 0:02:36]}  Nge5 {[%clk 0:02:22]} 16. g4 {[%clk 0:02:35]}  Rf7 {[%clk 0:02:16]} 17. Bh6 {[%clk 0:02:33]}  Raf8 {[%clk 0:02:13]} 18. Bxg7 {[%clk 0:02:31]}  Kxg7 {[%clk 0:02:14]} 19. b3 {[%clk 0:02:14]}  Qe7 {[%clk 0:02:08]} 20. g5 {[%clk 0:02:10]}  Qd7 {[%clk 0:01:57]} 21. Kh2 {[%clk 0:02:05]}  Ne7 {[%clk 0:01:54]} 22. Qc3 {[%clk 0:02:05]}  Nd5 {[%clk 0:01:47]} 23. Qd4 {[%clk 0:01:35]}  c5 {[%clk 0:01:39]} 24. Qe4 {[%clk 0:01:35]}  Rxf1 {[%clk 0:01:33]} 25. Rxf1 {[%clk 0:01:33]}  Rxf1 {[%clk 0:01:32]} 26. Bxf1 {[%clk 0:01:34]}  Nf7 {[%clk 0:01:30]} 27. Nf3 {[%clk 0:01:28]}  Ne7 {[%clk 0:01:20]} 28. Ng3 {[%clk 0:01:22]}  d5 {[%clk 0:01:19]} 29. Qf4 {[%clk 0:01:17]}  Nf5 {[%clk 0:01:17]} 30. Ne5 {[%clk 0:01:15]}  Nxe5 {[%clk 0:01:08]} 31. Qxe5+ {[%clk 0:01:15]}  Kg8 {[%clk 0:01:08]} 32. Nxf5 {[%clk 0:01:15]}  Bxf5 {[%clk 0:01:09]} 33. Bg2 {[%clk 0:01:14]}  Be6 {[%clk 0:01:06]} 34. h4 {[%clk 0:01:14]}  b6 {[%clk 0:01:04]} 35. Kg3 {[%clk 0:01:13]}  Qf7 {[%clk 0:01:03]} 36. Bf3 {[%clk 0:01:13]}  Qd7 {[%clk 0:00:58]} 37. c3 {[%clk 0:01:12]}  Qf7 {[%clk 0:00:55]} 38. d4 {[%clk 0:01:12]}  cxd4 {[%clk 0:00:54]} 39. cxd4 {[%clk 0:01:12]}  Qd7 {[%clk 0:00:53]} 40. b4 {[%clk 0:01:12]}  Bf7 {[%clk 0:00:53]} 41. Qb8+ {[%clk 0:01:08]}  Kg7 {[%clk 0:00:53]} 42. Qe5+ {[%clk 0:01:08]}  Kg8 {[%clk 0:00:54]} 43. h5 {[%clk 0:01:08]}  gxh5 {[%clk 0:00:54]} 44. Qb8+ {[%clk 0:01:08]}  Kg7 {[%clk 0:00:53]} 45. Qe5+ {[%clk 0:01:07]}  Kf8 {[%clk 0:00:54]} 46. Qh8+ {[%clk 0:01:07]}  Ke7 {[%clk 0:00:54]} 47. Qf6+ {[%clk 0:01:07]}  Ke8 {[%clk 0:00:54]} 48. Qe5+ {[%clk 0:01:04]}  Qe6 {[%clk 0:00:52]} 49. Qh8+ {[%clk 0:01:02]}  Kd7 {[%clk 0:00:52]} 50. Qxh7 {[%clk 0:01:03]}  Qd6+ {[%clk 0:00:50]} 51. Kf2 {[%clk 0:01:00]}  Qf4 {[%clk 0:00:45]} 52. g6 {[%clk 0:00:54]}  Qd2+ {[%clk 0:00:45]} 53. Kf1 {[%clk 0:00:51]}  Qd3+ {[%clk 0:00:44]} 54. Be2 {[%clk 0:00:49]}  Qxg6 {[%clk 0:00:45]} 55. Qh8 {[%clk 0:00:48]}  Qf5+ {[%clk 0:00:45]} 56. Ke1 {[%clk 0:00:48]}  Qb1+ {[%clk 0:00:44]} 57. Kf2 {[%clk 0:00:47]}  Qf5+ {[%clk 0:00:43]} 58. Ke1 {[%clk 0:00:47]}  Qf4 {[%clk 0:00:42]} 59. Qg7 {[%clk 0:00:45]}  Kd6 {[%clk 0:00:36]} 60. Qf8+ {[%clk 0:00:45]}  Ke6 {[%clk 0:00:32]} 61. Qh6+ {[%clk 0:00:44]}  Qxh6 {[%clk 0:00:32]} 0-1


[Site "https://www.chess.com"]

[Event "Titled Tuesday Blitz February 28 Late 2023"]
[White "Vlassov, Nikolai"]
[Black "Jenkins, Drake"]
[WhiteFideId "4103360"]
[BlackFideId "2022397"]
[WhiteElo "2324"]
[BlackElo "2311"]
[Result "1-0"]
[Round "01"]
[TimeControl "180+2"]
[Date "2023.02.28"]
[WhiteClock "0:00:30"]
[BlackClock "0:00:01"]

1. e4 {[%clk 0:02:56]}  c6 {[%clk 0:02:56]} 2. d4 {[%clk 0:02:55]}  d5 {[%clk 0:02:57]} 3. e5 {[%clk 0:02:56]}  c5 {[%clk 0:02:57]} 4. dxc5 {[%clk 0:02:56]}  Nc6 {[%clk 0:02:57]} 5. Bb5 {[%clk 0:02:54]}  Nh6 {[%clk 0:02:55]} 6. Bxh6 {[%clk 0:02:53]}  gxh6 {[%clk 0:02:54]} 7. Nf3 {[%clk 0:02:48]}  Bg4 {[%clk 0:02:48]} 8. Nbd2 {[%clk 0:02:37]}  e6 {[%clk 0:02:48]} 9. b4 {[%clk 0:02:36]}  Bg7 {[%clk 0:02:35]} 10. h3 {[%clk 0:02:30]}  Bh5 {[%clk 0:02:31]} 11. Qe2 {[%clk 0:02:17]}  O-O {[%clk 0:02:24]} 12. Bxc6 {[%clk 0:02:17]}  bxc6 {[%clk 0:02:24]} 13. O-O {[%clk 0:02:16]}  a5 {[%clk 0:02:13]} 14. a3 {[%clk 0:02:15]}  axb4 {[%clk 0:02:01]} 15. axb4 {[%clk 0:02:15]}  Qh4 {[%clk 0:01:53]} 16. Rxa8 {[%clk 0:01:54]}  Rxa8 {[%clk 0:01:50]} 17. Nxh4 {[%clk 0:01:49]}  Bxe2 {[%clk 0:01:49]} 18. Re1 {[%clk 0:01:49]}  Bb5 {[%clk 0:01:31]} 19. f4 {[%clk 0:01:45]}  Ra2 {[%clk 0:01:29]} 20. Rc1 {[%clk 0:01:44]}  f6 {[%clk 0:01:21]} 21. Nhf3 {[%clk 0:01:41]}  fxe5 {[%clk 0:01:09]} 22. fxe5 {[%clk 0:01:35]}  Ba4 {[%clk 0:01:05]} 23. c3 {[%clk 0:01:18]}  h5 {[%clk 0:00:38]} 24. Nf1 {[%clk 0:01:16]}  Bh6 {[%clk 0:00:33]} 25. Re1 {[%clk 0:01:13]}  Kf7 {[%clk 0:00:26]} 26. Nd4 {[%clk 0:01:10]}  Ra3 {[%clk 0:00:20]} 27. Ne2 {[%clk 0:00:59]}  Bb5 {[%clk 0:00:17]} 28. Nfg3 {[%clk 0:00:54]}  h4 {[%clk 0:00:17]} 29. Nh5 {[%clk 0:00:43]}  Be3+ {[%clk 0:00:10]} 30. Kh2 {[%clk 0:00:42]}  Bf2 {[%clk 0:00:10]} 31. Rf1 {[%clk 0:00:42]}  Ke7 {[%clk 0:00:03]} 32. Rxf2 {[%clk 0:00:42]}  Ra2 {[%clk 0:00:04]} 33. Nhf4 {[%clk 0:00:41]}  Rc2 {[%clk 0:00:03]} 34. g3 {[%clk 0:00:40]}  hxg3+ {[%clk 0:00:03]} 35. Kxg3 {[%clk 0:00:41]}  d4 {[%clk 0:00:03]} 36. cxd4 {[%clk 0:00:41]}  Bc4 {[%clk 0:00:03]} 37. Ng1 {[%clk 0:00:38]}  Rc3+ {[%clk 0:00:02]} 38. Nf3 {[%clk 0:00:39]}  Rb3 {[%clk 0:00:02]} 39. Kg4 {[%clk 0:00:38]}  Rxb4 {[%clk 0:00:02]} 40. Ng5 {[%clk 0:00:35]}  h6 {[%clk 0:00:01]} 41. Ng6+ {[%clk 0:00:34]}  Kd7 {[%clk 0:00:01]} 42. Rf7+ {[%clk 0:00:34]}  Kc8 {[%clk 0:00:01]} 43. Ne4 {[%clk 0:00:30]}  Be2+ {[%clk 0:00:01]} 44. Kf4 {[%clk 0:00:30]}  Rxd4 {[%clk 0:00:01]} 45. Ke3 {[%clk 0:00:30]} 1-0


[Site "https://www.chess.com"]

[Event "Titled Tuesday Blitz February 28 Late 2023"]
[White "Paspuel, Trosky"]
[Black "Sielecki, Christof"]
[WhiteFideId "3602150"]
[BlackFideId "4620437"]
[WhiteElo "2307"]
[BlackElo "2443"]
[Result "0-1"]
[Round "01"]
[TimeControl "180+2"]
[Date "2023.02.28"]
[WhiteClock "0:00:02"]
[BlackClock "0:00:07"]

1. c4 {[%clk 0:02:56]}  e6 {[%clk 0:02:59]} 2. Nc3 {[%clk 0:02:54]}  d5 {[%clk 0:03:00]} 3. d4 {[%clk 0:02:54]}  Nf6 {[%clk 0:02:59]} 4. cxd5 {[%clk 0:02:54]}  exd5 {[%clk 0:03:00]} 5. Bg5 {[%clk 0:02:54]}  c6 {[%clk 0:02:59]} 6. e3 {[%clk 0:02:54]}  h6 {[%clk 0:02:59]} 7. Bh4 {[%clk 0:02:54]}  Be7 {[%clk 0:03:00]} 8. Bd3 {[%clk 0:02:55]}  O-O {[%clk 0:03:00]} 9. Nge2 {[%clk 0:02:55]}  Re8 {[%clk 0:03:00]} 10. O-O {[%clk 0:02:53]}  a5 {[%clk 0:02:56]} 11. Qc2 {[%clk 0:02:46]}  b5 {[%clk 0:02:51]} 12. Rad1 {[%clk 0:02:44]}  Ba6 {[%clk 0:02:43]} 13. f3 {[%clk 0:02:24]}  Nbd7 {[%clk 0:02:25]} 14. h3 {[%clk 0:02:17]}  b4 {[%clk 0:01:58]} 15. Bxa6 {[%clk 0:02:12]}  Rxa6 {[%clk 0:01:55]} 16. Na4 {[%clk 0:02:13]}  Bd6 {[%clk 0:01:25]} 17. e4 {[%clk 0:01:56]}  Be7 {[%clk 0:00:46]} 18. e5 {[%clk 0:01:50]}  Nh7 {[%clk 0:00:45]} 19. Bxe7 {[%clk 0:01:46]}  Qxe7 {[%clk 0:00:43]} 20. f4 {[%clk 0:01:47]}  Rc8 {[%clk 0:00:39]} 21. f5 {[%clk 0:01:23]}  Qg5 {[%clk 0:00:32]} 22. Nf4 {[%clk 0:01:06]}  Nhf8 {[%clk 0:00:30]} 23. Nxd5 {[%clk 0:01:05]}  Kh8 {[%clk 0:00:22]} 24. Nf4 {[%clk 0:00:48]}  c5 {[%clk 0:00:22]} 25. Nxc5 {[%clk 0:00:42]}  Nxc5 {[%clk 0:00:22]} 26. dxc5 {[%clk 0:00:43]}  Rac6 {[%clk 0:00:22]} 27. Rd5 {[%clk 0:00:29]}  Qe7 {[%clk 0:00:18]} 28. f6 {[%clk 0:00:26]}  gxf6 {[%clk 0:00:16]} 29. exf6 {[%clk 0:00:20]}  Qe3+ {[%clk 0:00:15]} 30. Kh1 {[%clk 0:00:19]}  Rxc5 {[%clk 0:00:16]} 31. Qf5 {[%clk 0:00:15]}  Rxd5 {[%clk 0:00:12]} 32. Qxd5 {[%clk 0:00:15]}  Rc1 {[%clk 0:00:09]} 33. Qb5 {[%clk 0:00:04]}  Qxf4 {[%clk 0:00:07]} 34. Rxc1 {[%clk 0:00:01]}  Qxc1+ {[%clk 0:00:07]} 35. Kh2 {[%clk 0:00:02]}  Qf4+ {[%clk 0:00:08]} 36. Kh1 {[%clk 0:00:02]}  Qxf6 {[%clk 0:00:08]} 37. Qxa5 {[%clk 0:00:03]}  Qd4 {[%clk 0:00:08]} 38. Qa8 {[%clk 0:00:02]}  Kg7 {[%clk 0:00:07]} 0-1


[Site "https://www.chess.com"]

[Event "Titled Tuesday Blitz February 28 Late 2023"]
[White "Awoki, Daniel Teidi"]
[Black "Fiorito, Joaquin"]
[WhiteFideId "2100827"]
[BlackFideId "180173"]
[WhiteElo "2083"]
[BlackElo "2157"]
[Result "0-1"]
[Round "01"]
[TimeControl "180+2"]
[Date "2023.02.28"]
[WhiteClock "0:00:03"]
[BlackClock "0:00:27"]

1. e4 {[%clk 0:02:56]}  c6 {[%clk 0:02:56]} 2. d4 {[%clk 0:02:56]}  d5 {[%clk 0:02:55]} 3. exd5 {[%clk 0:02:57]}  cxd5 {[%clk 0:02:55]} 4. c4 {[%clk 0:02:57]}  Nf6 {[%clk 0:02:55]} 5. Nc3 {[%clk 0:02:58]}  Nc6 {[%clk 0:02:54]} 6. Nf3 {[%clk 0:02:59]}  a6 {[%clk 0:02:54]} 7. h3 {[%clk 0:02:54]}  e6 {[%clk 0:02:41]} 8. cxd5 {[%clk 0:02:50]}  Nxd5 {[%clk 0:02:41]} 9. Bd3 {[%clk 0:02:51]}  Be7 {[%clk 0:02:41]} 10. O-O {[%clk 0:02:50]}  O-O {[%clk 0:02:41]} 11. a3 {[%clk 0:02:50]}  Nf6 {[%clk 0:02:39]} 12. Re1 {[%clk 0:02:49]}  b5 {[%clk 0:02:38]} 13. Bc2 {[%clk 0:02:49]}  Bb7 {[%clk 0:02:37]} 14. Qd3 {[%clk 0:02:37]}  g6 {[%clk 0:02:22]} 15. Bh6 {[%clk 0:02:35]}  Re8 {[%clk 0:02:22]} 16. Rad1 {[%clk 0:02:33]}  Rc8 {[%clk 0:02:20]} 17. Bb3 {[%clk 0:02:25]}  Na5 {[%clk 0:02:13]} 18. Ba2 {[%clk 0:02:22]}  Nc4 {[%clk 0:02:12]} 19. Re2 {[%clk 0:02:09]}  Nd5 {[%clk 0:02:07]} 20. Bxc4 {[%clk 0:01:57]}  Rxc4 {[%clk 0:02:02]} 21. Ne5 {[%clk 0:01:54]}  Rc8 {[%clk 0:01:58]} 22. Ne4 {[%clk 0:01:33]}  f5 {[%clk 0:01:52]} 23. Nc5 {[%clk 0:00:55]}  Bxc5 {[%clk 0:01:24]} 24. dxc5 {[%clk 0:00:56]}  Qf6 {[%clk 0:01:23]} 25. Qg3 {[%clk 0:00:24]}  f4 {[%clk 0:00:41]} 26. Qg4 {[%clk 0:00:20]}  Qf5 {[%clk 0:00:38]} 27. Qxf5 {[%clk 0:00:18]}  exf5 {[%clk 0:00:39]} 28. b4 {[%clk 0:00:16]}  Nc3 {[%clk 0:00:36]} 29. Rd7 {[%clk 0:00:14]}  Nxe2+ {[%clk 0:00:36]} 30. Kf1 {[%clk 0:00:14]}  Rxe5 {[%clk 0:00:36]} 31. Rg7+ {[%clk 0:00:13]}  Kh8 {[%clk 0:00:35]} 32. Rxb7 {[%clk 0:00:14]}  Re6 {[%clk 0:00:32]} 33. h4 {[%clk 0:00:06]}  Rce8 {[%clk 0:00:31]} 34. g3 {[%clk 0:00:03]}  f3 {[%clk 0:00:31]} 35. Bg5 {[%clk 0:00:02]}  Nc1 {[%clk 0:00:28]} 36. Bd2 {[%clk 0:00:02]}  Nd3 {[%clk 0:00:26]} 37. Bc3+ {[%clk 0:00:03]}  Kg8 {[%clk 0:00:26]} 38. Rg7+ {[%clk 0:00:02]}  Kf8 {[%clk 0:00:27]} 39. Rxh7 {[%clk 0:00:03]}  Re1+ {[%clk 0:00:27]} 0-1


[Site "https://www.chess.com"]

[Event "Titled Tuesday Blitz February 28 Late 2023"]
[White "Paszewski, Mateusz"]
[Black "Lopez Del Alamo, Antonio"]
[WhiteFideId "1141058"]
[BlackFideId "2227339"]
[WhiteElo "2223"]
[BlackElo "2175"]
[Result "1-0"]
[Round "01"]
[TimeControl "180+2"]
[Date "2023.02.28"]
[WhiteClock "0:01:47"]
[BlackClock "0:01:51"]

1. d4 {[%clk 0:02:59]}  Nf6 {[%clk 0:02:59]} 2. c4 {[%clk 0:02:56]}  g6 {[%clk 0:02:51]} 3. Nc3 {[%clk 0:02:55]}  Bg7 {[%clk 0:02:47]} 4. e4 {[%clk 0:02:53]}  d6 {[%clk 0:02:44]} 5. h3 {[%clk 0:02:54]}  O-O {[%clk 0:02:40]} 6. Be3 {[%clk 0:02:53]}  Na6 {[%clk 0:02:39]} 7. g4 {[%clk 0:02:50]}  c5 {[%clk 0:02:30]} 8. Nge2 {[%clk 0:02:45]}  cxd4 {[%clk 0:02:25]} 9. Nxd4 {[%clk 0:02:46]}  Nc5 {[%clk 0:02:24]} 10. Bg2 {[%clk 0:02:46]}  a6 {[%clk 0:02:22]} 11. O-O {[%clk 0:02:46]}  e6 {[%clk 0:02:12]} 12. Qd2 {[%clk 0:02:36]}  Qc7 {[%clk 0:02:09]} 13. Rac1 {[%clk 0:02:33]}  Rd8 {[%clk 0:02:07]} 14. Rfd1 {[%clk 0:02:31]}  Rb8 {[%clk 0:02:00]} 15. Nde2 {[%clk 0:02:17]}  b6 {[%clk 0:01:58]} 16. b4 {[%clk 0:02:08]}  Ncd7 {[%clk 0:01:57]} 17. Bf4 {[%clk 0:01:48]}  Ne5 {[%clk 0:01:51]} 18. Bxe5 {[%clk 0:01:47]} 1-0


[Site "https://www.chess.com"]

[Event "Titled Tuesday Blitz February 28 Late 2023"]
[White "Leschinsky, Gary"]
[Black "Mustafayev, Farid"]
[WhiteFideId "30951321"]
[BlackFideId "13408771"]
[WhiteElo "1855"]
[BlackElo "2317"]
[Result "1-0"]
[Round "01"]
[TimeControl "180+2"]
[Date "2023.02.28"]
[WhiteClock "0:00:24"]
[BlackClock "0:00:30"]

1. d4 {[%clk 0:02:59]}  Nf6 {[%clk 0:02:59]} 2. c4 {[%clk 0:02:57]}  e6 {[%clk 0:02:59]} 3. Nc3 {[%clk 0:02:57]}  Bb4 {[%clk 0:02:58]} 4. e3 {[%clk 0:02:57]}  d5 {[%clk 0:02:57]} 5. Nf3 {[%clk 0:02:52]}  O-O {[%clk 0:02:56]} 6. Bd2 {[%clk 0:02:49]}  c5 {[%clk 0:02:53]} 7. a3 {[%clk 0:02:42]}  Bxc3 {[%clk 0:02:50]} 8. Bxc3 {[%clk 0:02:41]}  Ne4 {[%clk 0:02:50]} 9. Rc1 {[%clk 0:02:41]}  Nxc3 {[%clk 0:02:48]} 10. Rxc3 {[%clk 0:02:42]}  cxd4 {[%clk 0:02:45]} 11. Nxd4 {[%clk 0:02:40]}  Nc6 {[%clk 0:02:28]} 12. cxd5 {[%clk 0:02:33]}  Nxd4 {[%clk 0:02:26]} 13. Qxd4 {[%clk 0:02:32]}  exd5 {[%clk 0:02:25]} 14. Be2 {[%clk 0:02:29]}  Be6 {[%clk 0:02:07]} 15. O-O {[%clk 0:02:29]}  Qg5 {[%clk 0:02:00]} 16. Bf3 {[%clk 0:02:25]}  b6 {[%clk 0:01:53]} 17. Rd1 {[%clk 0:02:19]}  Rfd8 {[%clk 0:01:50]} 18. Qd2 {[%clk 0:02:05]}  Rac8 {[%clk 0:01:47]} 19. Rxc8 {[%clk 0:01:55]}  Rxc8 {[%clk 0:01:48]} 20. g3 {[%clk 0:01:46]}  g6 {[%clk 0:00:55]} 21. Bxd5 {[%clk 0:01:32]}  Rd8 {[%clk 0:00:54]} 22. e4 {[%clk 0:01:31]}  Qxd2 {[%clk 0:00:55]} 23. Rxd2 {[%clk 0:01:30]}  Kg7 {[%clk 0:00:56]} 24. f4 {[%clk 0:01:29]}  f5 {[%clk 0:00:56]} 25. Rd3 {[%clk 0:01:21]}  Kf6 {[%clk 0:00:54]} 26. Kf2 {[%clk 0:01:13]}  Rc8 {[%clk 0:00:46]} 27. e5+ {[%clk 0:01:08]}  Ke7 {[%clk 0:00:46]} 28. Bxe6 {[%clk 0:01:05]}  Kxe6 {[%clk 0:00:47]} 29. Rc3 {[%clk 0:01:03]}  Rd8 {[%clk 0:00:42]} 30. Ke2 {[%clk 0:01:01]}  Rd4 {[%clk 0:00:42]} 31. Rc7 {[%clk 0:00:59]}  Re4+ {[%clk 0:00:38]} 32. Kd3 {[%clk 0:00:58]}  g5 {[%clk 0:00:37]} 33. fxg5 {[%clk 0:00:35]}  Kxe5 {[%clk 0:00:37]} 34. Rxh7 {[%clk 0:00:34]}  Rg4 {[%clk 0:00:37]} 35. Rxa7 {[%clk 0:00:32]}  Rxg5 {[%clk 0:00:37]} 36. Ke3 {[%clk 0:00:31]}  Rh5 {[%clk 0:00:37]} 37. h4 {[%clk 0:00:31]}  Rh6 {[%clk 0:00:37]} 38. Re7+ {[%clk 0:00:29]}  Kd6 {[%clk 0:00:37]} 39. Rf7 {[%clk 0:00:29]}  Ke5 {[%clk 0:00:38]} 40. Re7+ {[%clk 0:00:28]}  Kd6 {[%clk 0:00:38]} 41. Re8 {[%clk 0:00:27]}  Rg6 {[%clk 0:00:37]} 42. Kf3 {[%clk 0:00:25]}  Rg4 {[%clk 0:00:35]} 43. Rb8 {[%clk 0:00:20]}  Kc7 {[%clk 0:00:24]} 44. Rf8 {[%clk 0:00:20]}  Rc4 {[%clk 0:00:25]} 45. Rxf5 {[%clk 0:00:20]}  Rc2 {[%clk 0:00:26]} 46. Rf7+ {[%clk 0:00:20]}  Kc6 {[%clk 0:00:26]} 47. Rf6+ {[%clk 0:00:20]}  Kb5 {[%clk 0:00:26]} 48. Rf4 {[%clk 0:00:19]}  Rxb2 {[%clk 0:00:25]} 49. Rb4+ {[%clk 0:00:20]}  Rxb4 {[%clk 0:00:26]} 50. axb4 {[%clk 0:00:21]}  Kxb4 {[%clk 0:00:27]} 51. h5 {[%clk 0:00:22]}  Ka3 {[%clk 0:00:27]} 52. h6 {[%clk 0:00:22]}  b5 {[%clk 0:00:28]} 53. h7 {[%clk 0:00:23]}  b4 {[%clk 0:00:29]} 54. h8=Q {[%clk 0:00:24]}  b3 {[%clk 0:00:30]} 55. Qa1+ {[%clk 0:00:24]} 1-0


[Site "https://www.chess.com"]

[Event "Titled Tuesday Blitz February 28 Late 2023"]
[White "Kaufman, Raymond"]
[Black "Sebag, Marie"]
[WhiteFideId "2015056"]
[BlackFideId "617822"]
[WhiteElo "2321"]
[BlackElo "2440"]
[Result "0-1"]
[Round "01"]
[TimeControl "180+2"]
[Date "2023.02.28"]
[WhiteClock "0:00:15"]
[BlackClock "0:00:48"]

1. d4 {[%clk 0:02:54]}  d5 {[%clk 0:02:57]} 2. c4 {[%clk 0:02:52]}  e6 {[%clk 0:02:48]} 3. Nc3 {[%clk 0:02:48]}  a6 {[%clk 0:02:40]} 4. cxd5 {[%clk 0:02:36]}  exd5 {[%clk 0:02:39]} 5. Bf4 {[%clk 0:02:36]}  c6 {[%clk 0:02:37]} 6. e3 {[%clk 0:02:13]}  Bd6 {[%clk 0:02:37]} 7. Bxd6 {[%clk 0:02:01]}  Qxd6 {[%clk 0:02:36]} 8. Bd3 {[%clk 0:01:59]}  Nf6 {[%clk 0:02:36]} 9. h3 {[%clk 0:01:56]}  O-O {[%clk 0:02:36]} 10. Nf3 {[%clk 0:01:56]}  Be6 {[%clk 0:02:31]} 11. O-O {[%clk 0:01:51]}  Nbd7 {[%clk 0:02:30]} 12. Qc2 {[%clk 0:01:48]}  a5 {[%clk 0:02:28]} 13. a3 {[%clk 0:01:43]}  h6 {[%clk 0:02:27]} 14. b4 {[%clk 0:01:37]}  b5 {[%clk 0:02:18]} 15. Ne2 {[%clk 0:01:25]}  Nb6 {[%clk 0:02:14]} 16. Qc5 {[%clk 0:01:24]}  Qxc5 {[%clk 0:02:06]} 17. dxc5 {[%clk 0:01:25]}  Nc4 {[%clk 0:02:06]} 18. Ned4 {[%clk 0:01:21]}  Bd7 {[%clk 0:02:06]} 19. Bxc4 {[%clk 0:01:00]}  bxc4 {[%clk 0:02:03]} 20. Ne5 {[%clk 0:00:59]}  Rfc8 {[%clk 0:02:01]} 21. f3 {[%clk 0:00:40]}  Be8 {[%clk 0:01:58]} 22. Rfb1 {[%clk 0:00:39]}  Kf8 {[%clk 0:01:50]} 23. Nf5 {[%clk 0:00:37]}  axb4 {[%clk 0:01:43]} 24. axb4 {[%clk 0:00:36]}  Rxa1 {[%clk 0:01:43]} 25. Rxa1 {[%clk 0:00:36]}  Rb8 {[%clk 0:01:43]} 26. Nd6 {[%clk 0:00:32]}  Rxb4 {[%clk 0:01:33]} 27. Ra8 {[%clk 0:00:29]}  c3 {[%clk 0:01:16]} 28. Nd7+ {[%clk 0:00:19]}  Ke7 {[%clk 0:01:00]} 29. Nxf6 {[%clk 0:00:16]}  gxf6 {[%clk 0:00:48]} 30. Rxe8+ {[%clk 0:00:15]}  Kd7 {[%clk 0:00:48]} 0-1


[Site "https://www.chess.com"]

[Event "Titled Tuesday Blitz February 28 Late 2023"]
[White "Tsyhanchuk, Stanislav"]
[Black "Aldokhin, Ivan"]
[WhiteFideId "13505130"]
[BlackFideId "24115720"]
[WhiteElo "2173"]
[BlackElo "2322"]
[Result "0-1"]
[Round "01"]
[TimeControl "180+2"]
[Date "2023.02.28"]
[WhiteClock "0:00:55"]
[BlackClock "0:01:49"]

1. e4 {[%clk 0:02:54]}  c5 {[%clk 0:03:00]} 2. Nf3 {[%clk 0:02:47]}  e6 {[%clk 0:03:00]} 3. c4 {[%clk 0:02:43]}  a6 {[%clk 0:03:00]} 4. Nc3 {[%clk 0:02:42]}  Qc7 {[%clk 0:03:00]} 5. Be2 {[%clk 0:02:15]}  Nf6 {[%clk 0:02:58]} 6. O-O {[%clk 0:02:15]}  Nc6 {[%clk 0:02:58]} 7. b3 {[%clk 0:02:07]}  Ng4 {[%clk 0:02:57]} 8. Bb2 {[%clk 0:02:00]}  h5 {[%clk 0:02:44]} 9. h4 {[%clk 0:01:49]}  Bd6 {[%clk 0:02:23]} 10. d4 {[%clk 0:01:14]}  cxd4 {[%clk 0:02:07]} 11. Nxd4 {[%clk 0:01:09]}  Bc5 {[%clk 0:01:59]} 12. Nf3 {[%clk 0:01:02]}  Nd4 {[%clk 0:01:55]} 13. g3 {[%clk 0:01:02]}  Nxf3+ {[%clk 0:01:49]} 14. Bxf3 {[%clk 0:01:01]}  Qxg3+ {[%clk 0:01:48]} 15. Bg2 {[%clk 0:00:55]}  Qh2# {[%clk 0:01:49]} 0-1


[Site "https://www.chess.com"]

[Event "Titled Tuesday Blitz February 28 Late 2023"]
[White "Smith, Garrett L"]
[Black "benny_aizenberg"]
[WhiteFideId "2024829"]
[WhiteElo "2274"]
[BlackElo "2590"]
[Result "1-0"]
[Round "01"]
[TimeControl "180+2"]
[Date "2023.02.28"]
[WhiteClock "0:00:20"]
[BlackClock "0:00:02"]

1. e4 {[%clk 0:03:00]}  c5 {[%clk 0:02:59]} 2. a3 {[%clk 0:03:00]}  d5 {[%clk 0:02:57]} 3. exd5 {[%clk 0:03:00]}  Qxd5 {[%clk 0:02:57]} 4. Nc3 {[%clk 0:03:00]}  Qd8 {[%clk 0:02:48]} 5. Nf3 {[%clk 0:03:00]}  Nf6 {[%clk 0:02:46]} 6. Bc4 {[%clk 0:02:59]}  e6 {[%clk 0:02:45]} 7. d3 {[%clk 0:02:56]}  h6 {[%clk 0:02:28]} 8. O-O {[%clk 0:02:53]}  Bd6 {[%clk 0:02:29]} 9. Be3 {[%clk 0:02:48]}  a6 {[%clk 0:02:25]} 10. Ne4 {[%clk 0:02:44]}  Nxe4 {[%clk 0:02:25]} 11. dxe4 {[%clk 0:02:44]}  O-O {[%clk 0:02:25]} 12. e5 {[%clk 0:02:36]}  Be7 {[%clk 0:02:25]} 13. Qe2 {[%clk 0:02:31]}  b5 {[%clk 0:02:24]} 14. Rfd1 {[%clk 0:02:23]}  Qc7 {[%clk 0:02:22]} 15. Bd3 {[%clk 0:02:17]}  Bb7 {[%clk 0:02:22]} 16. c4 {[%clk 0:02:15]}  bxc4 {[%clk 0:01:45]} 17. Bxc4 {[%clk 0:02:16]}  Nd7 {[%clk 0:01:45]} 18. Bf4 {[%clk 0:02:12]}  Nb6 {[%clk 0:01:41]} 19. Bd3 {[%clk 0:02:08]}  c4 {[%clk 0:01:40]} 20. Be4 {[%clk 0:02:07]}  Bxe4 {[%clk 0:01:37]} 21. Qxe4 {[%clk 0:02:08]}  Na4 {[%clk 0:01:33]} 22. Qc2 {[%clk 0:01:58]}  Qa5 {[%clk 0:01:25]} 23. Rd7 {[%clk 0:01:52]}  Rfe8 {[%clk 0:01:12]} 24. Qxc4 {[%clk 0:01:38]}  Nxb2 {[%clk 0:01:12]} 25. Qd4 {[%clk 0:01:31]}  Rab8 {[%clk 0:01:06]} 26. Bd2 {[%clk 0:01:17]}  Qa4 {[%clk 0:00:51]} 27. Bc3 {[%clk 0:01:03]}  Qxd4 {[%clk 0:00:44]} 28. Bxd4 {[%clk 0:01:04]}  Nc4 {[%clk 0:00:43]} 29. a4 {[%clk 0:01:00]}  Bf8 {[%clk 0:00:33]} 30. g3 {[%clk 0:00:56]}  Red8 {[%clk 0:00:30]} 31. Ra7 {[%clk 0:00:51]}  Rb3 {[%clk 0:00:18]} 32. Kg2 {[%clk 0:00:41]}  Rxf3 {[%clk 0:00:17]} 33. Kxf3 {[%clk 0:00:41]}  Rxd4 {[%clk 0:00:17]} 34. Rxa6 {[%clk 0:00:39]}  Nxe5+ {[%clk 0:00:17]} 35. Ke3 {[%clk 0:00:39]}  Bc5 {[%clk 0:00:16]} 36. Ra8+ {[%clk 0:00:39]}  Kh7 {[%clk 0:00:15]} 37. Ke2 {[%clk 0:00:39]}  Re4+ {[%clk 0:00:15]} 38. Kf1 {[%clk 0:00:39]}  Ng4 {[%clk 0:00:12]} 39. Ra2 {[%clk 0:00:38]}  Rc4 {[%clk 0:00:08]} 40. a5 {[%clk 0:00:35]}  Ne5 {[%clk 0:00:05]} 41. a6 {[%clk 0:00:34]}  Bd4 {[%clk 0:00:04]} 42. a7 {[%clk 0:00:23]}  Nc6 {[%clk 0:00:04]} 43. Rh8+ {[%clk 0:00:23]}  Kxh8 {[%clk 0:00:04]} 44. a8=Q+ {[%clk 0:00:24]}  Kh7 {[%clk 0:00:04]} 45. Qa6 {[%clk 0:00:22]}  Ne5 {[%clk 0:00:03]} 46. Rd2 {[%clk 0:00:21]}  Rc1+ {[%clk 0:00:03]} 47. Kg2 {[%clk 0:00:21]}  Bc3 {[%clk 0:00:04]} 48. Re2 {[%clk 0:00:20]}  Ng6 {[%clk 0:00:03]} 49. Qd3 {[%clk 0:00:19]}  Bf6 {[%clk 0:00:03]} 50. Rc2 {[%clk 0:00:19]}  Re1 {[%clk 0:00:03]} 51. h4 {[%clk 0:00:20]}  h5 {[%clk 0:00:03]} 52. Rc5 {[%clk 0:00:19]}  Kh6 {[%clk 0:00:02]} 53. Qd2+ {[%clk 0:00:20]} 1-0


[Site "https://www.chess.com"]